bitfinex/quotes_ETHUSD_20230102
["timestamp","ask_amount","ask_price","bid_price","bid_amount"]
[1672649560311,1.68415547,1217.2,1217.0,17.02724976]
[1672649561663,5.0,1217.1,1217.0,17.02724976]
[1672649563449,5.0,1217.1,1217.0,16.77486594]
[1672649567745,1.68415547,1217.2,1217.0,16.77486594]
[1672649568519,5.0,1217.1,1217.0,16.77486594]
[1672649572181,5.0,1217.1,1217.0,16.72486594]
[1672649573902,5.0,1217.1,1217.0,20.72486594]
[1672649574551,1.68415547,1217.2,1217.0,20.72486594]
[1672649575458,5.0,1217.1,1217.0,16.72486594]
[1672649579474,5.0,1217.1,1217.0,20.72486594]
[1672649581464,1.68415547,1217.2,1217.0,20.72486594]
[1672649582206,5.0,1217.1,1217.0,16.72486594]
[1672649585898,5.0,1217.1,1217.0,20.72486594]
[1672649587295,5.0,1217.1,1217.0,16.72486594]
[1672649590451,5.0,1217.1,1217.0,15.12833396]
[1672649590712,5.0,1217.1,1217.0,18.12833396]
[1672649591035,5.0,1217.1,1217.0,15.12833396]
[1672649592255,5.0,1217.1,1217.0,18.12833396]
[1672649592475,5.0,1217.1,1217.0,15.12833396]
[1672649593603,5.0,1217.1,1217.0,18.12833396]
[1672649594062,1.68415547,1217.2,1217.0,19.12833396]
[1672649594395,1.68415547,1217.2,1217.0,15.12833396]
[1672649594554,1.68415547,1217.2,1217.0,18.12833396]
[1672649594758,2.40577102,1217.2,1217.0,18.12833396]
[1672649594966,5.0,1217.1,1217.0,18.12833396]
[1672649595394,5.0,1217.1,1217.0,15.12833396]
[1672649595608,5.0,1217.1,1217.0,18.12833396]
[1672649596190,5.0,1217.1,1217.0,15.12833396]
[1672649596567,5.0,1217.1,1217.0,18.12833396]
[1672649597626,5.0,1217.1,1217.0,15.12833396]
[1672649598227,5.0,1217.1,1217.0,18.12833396]
[1672649598439,5.0,1217.1,1217.0,15.12833396]
[1672649598651,5.0,1217.1,1217.0,18.12833396]
[1672649598963,5.0,1217.1,1217.0,15.12833396]
[1672649599175,5.0,1217.1,1217.0,18.12833396]
[1672649599402,5.0,1217.1,1217.0,15.12833396]
[1672649599611,5.0,1217.1,1217.0,18.12833396]
[1672649600062,5.0,1217.1,1217.0,15.12833396]
[1672649600063,5.7405771,1217.1,1217.0,15.12833396]
[1672649600283,5.7405771,1217.1,1217.0,16.8313]
[1672649604484,5.0,1217.1,1217.0,16.8313]
[1672649607214,7.026,1217.1,1217.0,3.097]
[1672649607381,7.026,1217.1,1217.0,0.097]
[1672649607605,11.026,1217.1,1217.0,0.097]
[1672649607948,13.86723849,1217.1,1217.0,0.097]
[1672649608265,20.04209963,1217.1,1217.0,0.097]
[1672649608426,20.04209963,1217.1,1216.5,0.06]
[1672649608427,4.0,1217.0,1216.5,0.06]
[1672649608632,5.0,1216.7,1216.6,15.084]
[1672649608863,7.012,1216.7,1216.5,0.06]
[1672649609046,5.0,1216.7,1216.5,0.06]
[1672649609423,7.032,1216.7,1216.5,0.06]
[1672649609616,5.0,1216.7,1216.5,4.31238382]
[1672649610798,5.0,1216.7,1216.5,4.28238382]
[1672649610944,5.0,1216.7,1216.5,4.25238382]
[1672649612338,2.032,1216.6,1216.4,26.393]
[1672649612559,2.032,1216.6,1216.5,3.0]
[1672649613137,8.7465,1216.7,1216.5,3.0]
[1672649613286,8.7465,1216.7,1216.5,7.0]
[1672649614445,8.14528223,1216.7,1216.5,7.0]
[1672649615454,8.14528223,1216.7,1216.5,6.0]
[1672649615754,8.14528223,1216.7,1216.5,3.0]
[1672649616127,8.14528223,1216.7,1216.5,7.0]
[1672649617539,8.14528223,1216.7,1216.5,3.0]
[1672649617913,8.14528223,1216.7,1216.5,6.5]
[1672649618137,8.14528223,1216.7,1216.5,3.0]
[1672649618532,8.14528223,1216.7,1216.5,7.0]
[1672649619065,2.03718223,1216.7,1216.5,7.0]
[1672649619270,0.01618223,1216.7,1216.5,7.0]
[1672649619812,0.01618223,1216.7,1216.5,20.6291]
[1672649622439,2.02818223,1216.7,1216.5,20.6291]
[1672649622650,2.02818223,1216.7,1216.5,16.6291]
[1672649622873,2.43910045,1216.7,1216.5,16.6291]
[1672649623435,2.43910045,1216.7,1216.5,20.6291]
[1672649624062,2.43910045,1216.7,1216.5,16.6291]
[1672649626047,2.43910045,1216.7,1216.4,8.309]
[1672649626048,8.82236114,1216.6,1216.4,8.309]
[1672649626287,2.026,1216.5,1216.4,8.309]
[1672649627049,2.024,1216.6,1216.4,8.309]
[1672649627312,0.01618223,1216.7,1216.4,17.20216876]
[1672649627484,0.01618223,1216.7,1216.6,4.0]
[1672649627898,0.01618223,1216.7,1216.6,7.0]
[1672649630128,0.01618223,1216.7,1216.6,2.99685871]
[1672649630547,0.01618223,1216.7,1216.6,2.89685871]
[1672649632647,0.01618223,1216.7,1216.6,2.84681557]
[1672649641905,0.01618223,1216.7,1216.6,2.79681557]
[1672649643328,0.01618223,1216.7,1216.6,5.71510713]
[1672649643499,0.01618223,1216.7,1216.6,17.82171557]
[1672649647815,0.01618223,1216.7,1216.6,17.92071557]
[1672649664015,0.01618223,1216.7,1216.6,17.9184993]
[1672649664416,0.01618223,1216.7,1216.6,17.8184993]
[1672649668599,0.01618223,1216.7,1216.6,17.7184993]
[1672649668979,0.01618223,1216.7,1216.6,20.72741923]
[1672649670017,0.01618223,1216.7,1216.6,31.90937803]
[1672649670254,2.23535547,1217.2,1217.1,7.51061777]
[1672649670865,1.61815547,1217.2,1217.1,7.51061777]
[1672649672195,1.61815547,1217.2,1217.1,7.46061777]
[1672649672541,6.61815547,1217.2,1217.1,7.46061777]
[1672649675218,6.61815547,1217.2,1217.1,10.01547955]
[1672649675429,6.61815547,1217.2,1217.1,13.01547955]
[1672649675801,6.61815547,1217.2,1217.1,10.15439224]
[1672649678330,6.61815547,1217.2,1217.1,7.59953046]
[1672649686748,6.61815547,1217.2,1217.1,11.59953046]
[1672649689656,6.61815547,1217.2,1217.1,7.59953046]
[1672649690330,6.61815547,1217.2,1217.1,11.59953046]
[1672649692282,6.61815547,1217.2,1217.1,7.59953046]
[1672649692500,6.61815547,1217.2,1217.1,11.59953046]
[1672649693814,6.61815547,1217.2,1217.1,7.59953046]
[1672649695503,6.61815547,1217.2,1217.1,11.59953046]
[1672649696709,6.61815547,1217.2,1217.1,7.59953046]
[1672649697346,6.61815547,1217.2,1217.1,7.59732981]
[1672649700182,7.88767102,1217.2,1217.1,7.59732981]
[1672649704817,6.61815547,1217.2,1217.1,7.59732981]
[1672649705358,1.61815547,1217.2,1217.1,7.59732981]
[1672649706438,6.61815547,1217.2,1217.1,7.59732981]
[1672649709555,6.61815547,1217.2,1217.1,11.59732981]
[1672649715899,6.61815547,1217.2,1217.1,7.59732981]
[1672649716464,6.61815547,1217.2,1217.1,11.59732981]
[1672649718039,6.61815547,1217.2,1217.1,11.59360934]
[1672649720778,6.61815547,1217.2,1217.1,7.59360934]
[1672649722145,6.61815547,1217.2,1217.1,11.59360934]
[1672649722808,1.61815547,1217.2,1217.1,11.59360934]
[1672649723017,1.61815547,1217.2,1217.1,7.59360934]
[1672649723560,1.61815547,1217.2,1217.1,11.59360934]
[1672649723781,6.61815547,1217.2,1217.1,11.59360934]
[1672649724341,6.61815547,1217.2,1217.1,7.59360934]
[1672649726392,6.61815547,1217.2,1217.1,11.59360934]
[1672649728575,6.56815547,1217.2,1217.1,11.59360934]
[1672649730149,6.56815547,1217.2,1217.1,14.16177027]
[1672649732306,6.56815547,1217.2,1217.1,10.16177027]
[1672649732679,6.56815547,1217.2,1217.1,7.59360934]
[1672649733935,6.56815547,1217.2,1217.1,11.59360934]
[1672649736619,6.56815547,1217.2,1217.1,8.59360934]
[1672649736809,6.56815547,1217.2,1217.1,7.59360934]
[1672649739300,6.56815547,1217.2,1217.1,11.59360934]
[1672649740405,6.56815547,1217.2,1217.1,14.18700866]
[1672649744193,6.56815547,1217.2,1217.1,14.43939248]
[1672649745448,6.56815547,1217.2,1217.1,10.43939248]
[1672649745660,6.56815547,1217.2,1217.1,7.84599316]
[1672649745821,6.56815547,1217.2,1217.1,11.84599316]
[1672649746709,6.56815547,1217.2,1217.1,7.59360934]
[1672649749089,6.56815547,1217.2,1217.1,11.59360934]
[1672649749285,6.56815547,1217.2,1217.1,7.59360934]
[1672649750880,6.56815547,1217.2,1217.1,11.59360934]
[1672649751109,6.56815547,1217.2,1217.1,11.59041699]
[1672649759202,6.56815547,1217.2,1217.1,7.59041699]
[1672649759662,6.56815547,1217.2,1217.1,11.59041699]
[1672649761522,6.56815547,1217.2,1217.1,14.41064251]
[1672649766296,6.56815547,1217.2,1217.1,16.44264251]
[1672649766506,6.56815547,1217.2,1217.1,24.65889251]
[1672649767124,6.56815547,1217.2,1217.1,16.44264251]
[1672649767551,6.56815547,1217.2,1217.1,20.59150365]
[1672649769081,6.56565904,1217.2,1217.1,20.59150365]
[1672649773251,6.56565904,1217.2,1217.1,20.33911983]
[1672649773442,6.56565904,1217.2,1217.1,20.59150365]
[1672649775838,6.56565904,1217.2,1217.1,14.41064251]
[1672649776794,6.56565904,1217.2,1217.1,7.84280081]
[1672649777233,6.56565904,1217.2,1217.1,7.59041699]
[1672649780380,6.56565904,1217.2,1217.1,11.59041699]
[1672649780829,6.56565904,1217.2,1217.1,7.59041699]
[1672649791655,6.56565904,1217.2,1217.1,7.58751248]
[1672649791873,6.56565904,1217.2,1217.1,11.58751248]
[1672649792217,6.56565904,1217.2,1217.1,7.58751248]
[1672649792429,6.56565904,1217.2,1217.1,11.58751248]
[1672649792621,6.56565904,1217.2,1217.1,7.58751248]
[1672649795064,6.56565904,1217.2,1217.1,11.58751248]
[1672649795648,6.56565904,1217.2,1217.1,7.58751248]
[1672649796592,6.56565904,1217.2,1217.1,11.58751248]
[1672649797285,6.56565904,1217.2,1217.1,7.58751248]
[1672649797414,6.56565904,1217.2,1217.1,11.58751248]
[1672649798476,1.56565904,1217.2,1217.1,11.58751248]
[1672649798691,6.56565904,1217.2,1217.1,11.58751248]
[1672649801266,6.56565904,1217.2,1217.1,7.58751248]
[1672649801420,6.56565904,1217.2,1217.1,11.58751248]
[1672649801894,6.64565904,1217.2,1217.1,11.58751248]
[1672649806698,6.64565904,1217.2,1217.1,20.36788054]
[1672649806929,6.64565904,1217.2,1217.1,37.05276436]
[1672649808200,6.64565904,1217.2,1217.1,20.62026436]
[1672649815743,1.64565904,1217.2,1217.1,20.62026436]
[1672649816590,6.64565904,1217.2,1217.1,20.62026436]
[1672649816823,6.64565904,1217.2,1217.1,20.6169828]
[1672649823178,1.64565904,1217.2,1217.1,20.6169828]
[1672649823674,6.64565904,1217.2,1217.1,20.6169828]
[1672649827966,6.64565904,1217.2,1217.1,20.5669828]
[1672649828175,6.64565904,1217.2,1217.1,39.4552328]
[1672649828401,6.64565904,1217.2,1217.1,31.83379898]
[1672649828668,6.64565904,1217.2,1217.1,32.0861828]
[1672649828961,6.64565904,1217.2,1217.1,31.8561828]
[1672649829789,6.64565904,1217.2,1217.1,31.2389828]
[1672649830218,6.64565904,1217.2,1217.1,29.2049828]
[1672649830393,6.64565904,1217.2,1217.1,7.53423092]
[1672649830586,6.64565904,1217.2,1217.1,4.53423092]
[1672649832313,6.64565904,1217.2,1217.1,7.53423092]
[1672649836699,6.64565904,1217.2,1217.1,11.53423092]
[1672649839893,6.64565904,1217.2,1217.1,7.53423092]
[1672649845106,7.51872494,1217.2,1217.1,7.53423092]
[1672649845476,11.57972494,1217.2,1217.1,7.53423092]
[1672649845963,9.55272494,1217.2,1217.1,7.53423092]
[1672649848630,8.67965904,1217.2,1217.1,7.53423092]
[1672649849834,10.71365904,1217.2,1217.1,7.53423092]
[1672649850297,10.71365904,1217.2,1217.1,4.53423092]
[1672649850903,10.71365904,1217.2,1217.1,4.53058513]
[1672649856061,6.64565904,1217.2,1217.1,4.53058513]
[1672649862399,6.64565904,1217.2,1217.1,4.78296895]
[1672649862878,6.64565904,1217.2,1217.1,7.78296895]
[1672649864086,6.64565904,1217.2,1217.1,7.53058513]
[1672649865587,6.64565904,1217.2,1217.1,7.78296895]
[1672649873671,6.64565904,1217.2,1217.1,7.53058513]
[1672649874882,6.64565904,1217.2,1217.1,7.78296895]
[1672649875617,6.64565904,1217.2,1217.1,7.7790424]
[1672649879825,6.64565904,1217.2,1217.1,7.52665858]
[1672649880934,6.64565904,1217.2,1217.1,10.16390282]
[1672649881196,6.64565904,1217.2,1217.1,10.41628664]
[1672649883862,6.64565904,1217.2,1217.1,7.7790424]
[1672649886393,6.64565904,1217.2,1217.1,7.52665858]
[1672649887058,6.64565904,1217.2,1217.1,7.7790424]
[1672649889762,1.64565904,1217.2,1217.1,7.7790424]
[1672649890010,6.64565904,1217.2,1217.1,7.7790424]
[1672649892863,6.64565904,1217.2,1217.1,10.4165225]
[1672649894602,6.64565904,1217.2,1217.1,7.7790424]
[1672649895909,1.64565904,1217.2,1217.1,7.7790424]
[1672649897075,6.64565904,1217.2,1217.1,7.77697149]
[1672649904564,1.64565904,1217.2,1217.1,7.77697149]
[1672649905505,6.64565904,1217.2,1217.1,7.77697149]
[1672649912964,6.64231661,1217.2,1217.1,7.77697149]
[1672649913810,6.64231661,1217.2,1217.1,8.67924725]
[1672649915857,6.64231661,1217.2,1217.1,12.82810839]
[1672649918701,6.64231661,1217.2,1217.1,8.67924725]
[1672649922074,1.64231661,1217.2,1217.1,8.67924725]
[1672649923266,6.64231661,1217.2,1217.1,35.84827488]
[1672649923480,6.64231661,1217.2,1217.1,44.06452488]
[1672649924176,6.64231661,1217.2,1217.1,52.71052488]
[1672649924371,6.64231661,1217.2,1217.1,52.94052488]
[1672649924580,6.64231661,1217.2,1217.1,48.37085839]
[1672649924898,6.64231661,1217.2,1217.1,23.72210839]
[1672649926365,6.64231661,1217.2,1217.1,23.49210839]
[1672649926613,6.64231661,1217.2,1217.1,31.70835839]
[1672649931407,1.64231661,1217.2,1217.1,31.70835839]
[1672649931617,1.64231661,1217.2,1217.1,39.92460839]
[1672649932529,6.64231661,1217.2,1217.1,39.67222457]
[1672649932998,6.64231661,1217.2,1217.1,39.92460839]
[1672649933411,6.64231661,1217.2,1217.1,31.70835839]
[1672649933824,6.64231661,1217.2,1217.1,44.66033715]
[1672649934507,6.64231661,1217.2,1217.1,52.87658715]
[1672649935363,6.64231661,1217.2,1217.1,52.87445414]
[1672649938362,6.64231661,1217.2,1217.1,23.71997538]
[1672649938592,6.64231661,1217.2,1217.1,23.48997538]
[1672649938981,6.64231661,1217.2,1217.1,31.70622538]
[1672649944505,6.64231661,1217.2,1217.1,23.48997538]
[1672649947600,6.64231661,1217.2,1217.1,23.23759156]
[1672649947779,6.64231661,1217.2,1217.1,13.6893158]
[1672649947965,6.64231661,1217.2,1217.1,17.94169962]
[1672649948137,6.64231661,1217.2,1217.1,34.37419962]
[1672649948590,6.64231661,1217.2,1217.1,17.94169962]
[1672649948763,6.64231661,1217.2,1217.1,26.15794962]
[1672649948973,6.64231661,1217.2,1217.1,32.94464545]
[1672649951289,6.64231661,1217.2,1217.1,32.69226163]
[1672649952128,6.64231661,1217.2,1217.1,41.16089545]
[1672649953343,6.64231661,1217.2,1217.1,32.94464545]
[1672649953500,6.64231661,1217.2,1217.1,24.72839545]
[1672649953710,6.64231661,1217.2,1217.1,32.94464545]
[1672649954352,6.64231661,1217.2,1217.1,45.89751293]
[1672649954667,6.64231661,1217.2,1217.1,41.16089545]
[1672649956717,6.64231661,1217.2,1217.1,45.89751293]
[1672649957285,6.64231661,1217.2,1217.1,41.16089545]
[1672649957692,6.64231661,1217.2,1217.1,45.89751293]
[1672649958456,6.64231661,1217.2,1217.1,41.16089545]
[1672649959125,6.64231661,1217.2,1217.1,32.94139573]
[1672649960930,6.64231661,1217.2,1217.1,49.80364573]
[1672649962972,6.64231661,1217.2,1217.1,54.53981314]
[1672649963183,6.64231661,1217.2,1217.1,49.80364573]
[1672649963768,6.64231661,1217.2,1217.1,58.01989573]
[1672649963991,6.64231661,1217.2,1217.1,58.24989573]
[1672649964339,1.64231661,1217.2,1217.1,58.24989573]
[1672649965510,6.64231661,1217.2,1217.1,58.24989573]
[1672649966545,6.64231661,1217.2,1217.1,50.03364573]
[1672649968491,6.64231661,1217.2,1217.1,54.77026321]
[1672649968704,6.64231661,1217.2,1217.1,54.51787939]
[1672649969060,6.64231661,1217.2,1217.1,49.78126191]
[1672649969328,6.64231661,1217.2,1217.1,54.76981373]
[1672649969494,6.64231661,1217.2,1217.1,50.03364573]
[1672649969905,6.64231661,1217.2,1217.1,41.81739573]
[1672649971652,6.64231661,1217.2,1217.1,41.71739573]
[1672649972778,6.64231661,1217.2,1217.1,33.50114573]
[1672649973931,6.64231661,1217.2,1217.1,17.8384499]
[1672649974261,6.64231661,1217.2,1217.1,15.8204499]
[1672649978737,6.64231661,1217.2,1217.1,24.0366999]
[1672649980050,6.64231661,1217.2,1217.1,15.8204499]
[1672649980257,1.64231661,1217.2,1217.1,15.8204499]
[1672649981238,6.64231661,1217.2,1217.1,15.8204499]
[1672649989080,6.64231661,1217.2,1217.1,21.32704875]
[1672649989303,6.64231661,1217.2,1217.1,21.07466493]
[1672649990395,6.64231661,1217.2,1217.1,21.32704875]
[1672649991389,6.64231661,1217.2,1217.1,29.54329875]
[1672649992435,6.64231661,1217.2,1217.1,29.53981824]
[1672649993494,6.64231661,1217.2,1217.1,29.28743442]
[1672649993867,6.64231661,1217.2,1217.1,29.53981824]
[1672649994242,6.64231661,1217.2,1217.1,29.28743442]
[1672649994467,6.64231661,1217.2,1217.1,29.53981824]
[1672649996390,6.64231661,1217.2,1217.1,29.28743442]
[1672649997291,6.64231661,1217.2,1217.1,29.53981824]
[1672649999183,6.64231661,1217.2,1217.1,29.28743442]
[1672649999619,6.64231661,1217.2,1217.1,29.53981824]
[1672649999791,6.64231661,1217.2,1217.1,45.97231824]
[1672650000218,3.8569564,1217.2,1217.1,45.97231824]
[1672650000848,3.8569564,1217.2,1217.1,37.75606824]
[1672650001079,3.8569564,1217.2,1217.1,46.40206824]
[1672650001400,3.8569564,1217.2,1217.1,53.38157672]
[1672650002315,3.8569564,1217.2,1217.1,53.38203111]
[1672650002792,3.8569564,1217.2,1217.1,61.59828111]
[1672650003175,3.8569564,1217.2,1217.1,53.38203111]
[1672650005931,3.8569564,1217.2,1217.1,48.66606824]
[1672650006564,3.8569564,1217.2,1217.1,53.3824848]
[1672650007152,3.8569564,1217.2,1217.1,48.66606824]
[1672650008190,3.8569564,1217.2,1217.1,46.63206824]
[1672650008372,3.8569564,1217.2,1217.1,51.3484848]
[1672650008541,3.8569564,1217.2,1217.1,51.09610098]
[1672650009199,3.8569564,1217.2,1217.1,51.3484848]
[1672650009629,3.8569564,1217.2,1217.1,46.63206824]
[1672650010383,3.8569564,1217.2,1217.1,51.3484848]
[1672650010539,3.8569564,1217.2,1217.1,46.63206824]
[1672650010749,3.8569564,1217.2,1217.1,51.3484848]
[1672650011207,3.8569564,1217.2,1217.1,46.63206824]
[1672650013793,3.8569564,1217.2,1217.1,51.3484848]
[1672650014145,3.8569564,1217.2,1217.1,46.63206824]
[1672650014803,3.8569564,1217.2,1217.1,51.3484848]
[1672650016686,3.8569564,1217.2,1217.1,46.63206824]
[1672650016854,0.066,1217.3,1217.2,4.0]
[1672650017210,0.066,1217.3,1217.2,16.46445178]
[1672650017366,5.066,1217.3,1217.2,16.46445178]
[1672650017579,5.06228092,1217.3,1217.2,24.68002178]
[1672650017903,5.06228092,1217.3,1217.2,41.11116178]
[1672650019215,5.06228092,1217.3,1217.2,24.68002178]
[1672650019359,5.06228092,1217.3,1217.2,16.46445178]
[1672650021465,5.06228092,1217.3,1217.2,16.46681002]
[1672650024480,5.06228092,1217.3,1217.2,24.68238002]
[1672650026525,0.06228092,1217.3,1217.2,24.68238002]
[1672650026827,5.06228092,1217.3,1217.2,24.68238002]
[1672650030820,5.06228092,1217.3,1217.2,45.82993658]
[1672650030975,5.06228092,1217.3,1217.2,41.34352002]
[1672650031780,5.06228092,1217.3,1217.2,33.12795002]
[1672650033264,5.0,1217.3,1217.2,33.22695002]
[1672650034231,5.0,1217.3,1217.2,25.01138002]
[1672650035407,5.0,1217.3,1217.2,33.22695002]
[1672650037212,0.06428092,1217.4,1217.2,33.22695002]
[1672650037538,0.06428092,1217.4,1217.3,7.14886114]
[1672650037853,5.06428092,1217.4,1217.3,10.7690937]
[1672650038025,5.06428092,1217.4,1217.3,19.23637752]
[1672650041420,5.06428092,1217.4,1217.3,40.61259408]
[1672650041592,5.06428092,1217.4,1217.3,49.25859408]
[1672650042365,5.06428092,1217.4,1217.3,49.25813893]
[1672650042578,5.06428092,1217.4,1217.3,51.29213893]
[1672650043112,5.06428092,1217.4,1217.3,43.07723893]
[1672650044132,5.06428092,1217.4,1217.3,38.36127752]
[1672650044562,5.06428092,1217.4,1217.3,43.07769408]
[1672650044769,5.06428092,1217.4,1217.3,38.36127752]
[1672650045519,5.06428092,1217.4,1217.3,36.32727752]
[1672650046440,5.06428092,1217.4,1217.3,41.04369408]
[1672650046863,5.06428092,1217.4,1217.3,11.02147752]
[1672650047725,5.06428092,1217.4,1217.3,19.23637752]
[1672650051716,5.06428092,1217.4,1217.3,32.16769408]
[1672650051944,5.06428092,1217.4,1217.3,27.68127752]
[1672650052539,5.06428092,1217.4,1217.3,36.32727752]
[1672650053230,5.0,1217.4,1217.3,41.14269408]
[1672650054110,5.0,1217.4,1217.3,36.42627752]
[1672650055906,5.0,1217.4,1217.3,41.14269408]
[1672650056232,5.0,1217.4,1217.3,36.42627752]
[1672650057901,5.0,1217.4,1217.3,41.14269408]
[1672650058110,5.0,1217.4,1217.3,36.42627752]
[1672650058343,5.0,1217.4,1217.3,41.14269408]
[1672650058576,5.0,1217.4,1217.3,36.42627752]
[1672650058803,5.0,1217.4,1217.3,41.14269408]
[1672650059025,0.06428092,1217.5,1217.4,4.0]
[1672650059194,0.06428092,1217.5,1217.4,15.19148889]
[1672650059422,0.06428092,1217.5,1217.4,15.44387271]
[1672650059615,0.06428092,1217.5,1217.4,23.65809271]
[1672650060653,5.06428092,1217.5,1217.4,23.65809271]
[1672650061725,5.06181411,1217.5,1217.4,23.65809271]
[1672650063438,5.06181411,1217.5,1217.4,31.87231271]
[1672650064024,5.06181411,1217.5,1217.4,23.65809271]
[1672650066443,5.06181411,1217.5,1217.4,23.88809271]
[1672650068648,5.06181411,1217.5,1217.4,19.88809271]
[1672650068854,5.06181411,1217.5,1217.4,19.65809271]
[1672650069379,5.06181411,1217.5,1217.4,36.08653271]
[1672650071119,5.06181411,1217.5,1217.4,27.87231271]
[1672650072375,5.06181411,1217.5,1217.4,49.44894927]
[1672650072587,5.06181411,1217.5,1217.4,49.67894927]
[1672650073293,5.0,1217.5,1217.4,41.56372927]
[1672650074381,5.0,1217.5,1217.4,36.84731271]
[1672650076333,5.0,1217.5,1217.4,41.56372927]
[1672650076561,5.0,1217.5,1217.4,36.84731271]
[1672650078174,5.0,1217.5,1217.4,41.56372927]
[1672650078907,5.0,1217.5,1217.4,49.77794927]
[1672650079519,3.30331035,1217.5,1217.4,51.79594927]
[1672650080969,3.30331035,1217.5,1217.4,38.86531271]
[1672650081181,3.30331035,1217.5,1217.4,28.63309271]
[1672650081375,3.30331035,1217.5,1217.4,20.41887271]
[1672650082246,3.30331035,1217.5,1217.4,28.63309271]
[1672650082461,3.30331035,1217.5,1217.4,11.54287271]
[1672650082797,3.30331035,1217.5,1217.4,4.50024496]
[1672650084024,3.30331035,1217.5,1217.4,7.50024496]
[1672650085293,3.30331035,1217.5,1217.4,11.50024496]
[1672650085496,3.30331035,1217.5,1217.4,7.50024496]
[1672650086589,3.30331035,1217.5,1217.4,11.00024496]
[1672650086747,3.30331035,1217.5,1217.4,14.68305207]
[1672650086953,3.30331035,1217.5,1217.4,11.18305207]
[1672650088928,3.30331035,1217.5,1217.4,15.18305207]
[1672650091433,3.30331035,1217.5,1217.4,11.18305207]
[1672650091647,3.30331035,1217.5,1217.4,14.68305207]
[1672650091962,3.30331035,1217.5,1217.4,11.18305207]
[1672650092121,3.30331035,1217.5,1217.4,15.18305207]
[1672650095495,3.30331035,1217.5,1217.4,23.39727207]
[1672650095730,0.06181411,1217.6,1217.5,4.0]
[1672650095896,0.06181411,1217.6,1217.5,11.14886114]
[1672650096365,0.06181411,1217.6,1217.5,10.35191783]
[1672650096772,5.06181411,1217.6,1217.5,10.35191783]
[1672650099000,5.06181411,1217.6,1217.5,7.14886114]
[1672650099949,5.06181411,1217.6,1217.5,7.40124496]
[1672650102007,5.06181411,1217.6,1217.5,11.40124496]
[1672650102398,5.00581411,1217.6,1217.5,11.48524496]
[1672650102573,5.0,1217.6,1217.5,11.50024496]
[1672650105516,5.0,1217.6,1217.5,19.71379496]
[1672650106659,5.0,1217.6,1217.5,25.50285376]
[1672650108143,5.0,1217.6,1217.5,33.71640376]
[1672650109299,5.0,1217.6,1217.5,25.50285376]
[1672650109491,5.0,1217.6,1217.5,25.73285376]
[1672650111081,5.0,1217.6,1217.5,34.37885376]
[1672650111290,5.0,1217.6,1217.5,47.28668088]
[1672650111444,5.0,1217.6,1217.5,55.50023088]
[1672650111655,5.0,1217.6,1217.5,57.51623088]
[1672650112601,5.0,1217.6,1217.5,49.30268088]
[1672650113767,5.0,1217.6,1217.5,57.51623088]
[1672650114360,5.06181411,1217.7,1217.5,57.51623088]
[1672650114571,5.06181411,1217.7,1217.6,20.02689331]
[1672650114788,5.06181411,1217.7,1217.6,34.71458962]
[1672650115150,5.01181411,1217.7,1217.6,34.96697344]
[1672650117708,5.004,1217.7,1217.6,35.06597344]
[1672650122183,5.004,1217.7,1217.6,13.97507127]
[1672650122416,5.004,1217.7,1217.6,7.50024496]
[1672650127560,5.004,1217.7,1217.6,11.50024496]
[1672650130268,5.004,1217.7,1217.6,27.92598496]
[1672650131983,5.004,1217.7,1217.6,19.71311496]
[1672650132977,5.004,1217.7,1217.6,15.71311496]
[1672650133207,7.038,1217.7,1217.6,4.24786114]
[1672650133422,7.038,1217.7,1217.6,4.14886114]
[1672650134682,7.038,1217.7,1217.6,7.64886114]
[1672650134888,7.038,1217.7,1217.6,7.24786114]
[1672650135481,7.038,1217.7,1217.6,11.24786114]
[1672650135954,7.038,1217.7,1217.6,7.24786114]
[1672650136164,7.038,1217.7,1217.6,4.24786114]
[1672650136413,7.038,1217.7,1217.6,4.14886114]
[1672650137746,7.038,1217.7,1217.6,7.14886114]
[1672650137914,7.038,1217.7,1217.6,7.24786114]
[1672650139326,7.038,1217.7,1217.6,11.24482363]
[1672650139851,7.038,1217.7,1217.6,7.24482363]
[1672650140204,7.038,1217.7,1217.6,11.24482363]
[1672650140422,7.038,1217.7,1217.6,7.24482363]
[1672650147471,7.038,1217.7,1217.6,3.099]
[1672650147757,7.94568141,1217.7,1217.6,3.0]
[1672650148417,9.97968141,1217.7,1217.4,3.099]
[1672650148628,2.034,1217.5,1217.4,11.14886114]
[1672650148872,7.034,1217.5,1217.4,11.24786114]
[1672650151258,7.034,1217.5,1217.4,7.24786114]
[1672650151468,7.034,1217.5,1217.4,11.24786114]
[1672650152238,7.034,1217.5,1217.4,11.50024496]
[1672650155456,5.0,1217.5,1217.4,11.50024496]
[1672650155845,5.0,1217.5,1217.4,7.50024496]
[1672650155982,5.0,1217.5,1217.4,11.50024496]
[1672650156349,2.04981411,1217.6,1217.4,11.50024496]
[1672650156505,2.034,1217.6,1217.5,4.0]
[1672650156716,2.034,1217.6,1217.5,7.0]
[1672650156921,2.034,1217.6,1217.5,7.099]
[1672650157345,5.0,1217.6,1217.5,7.099]
[1672650160036,5.0,1217.6,1217.5,11.24786114]
[1672650160246,5.0,1217.6,1217.5,11.2441016]
[1672650164127,5.0,1217.6,1217.5,7.24786114]
[1672650164353,5.79574955,1217.6,1217.5,7.24786114]
[1672650165982,5.0,1217.6,1217.5,7.24786114]
[1672650166187,5.0,1217.6,1217.5,7.50024496]
[1672650168081,5.0,1217.6,1217.5,3.35138382]
[1672650168291,5.0,1217.6,1217.5,3.25238382]
[1672650175452,7.036,1217.6,1217.5,3.25238382]
[1672650175801,7.034,1217.6,1217.5,3.25238382]
[1672650177744,7.82974955,1217.6,1217.5,3.25238382]
[1672650177955,7.82974955,1217.6,1217.5,0.25238382]
[1672650178806,7.82974955,1217.6,1217.4,3.0]
[1672650179034,7.82974955,1217.6,1217.4,7.14886114]
[1672650179264,7.82974955,1217.6,1217.4,7.24786114]
[1672650179634,7.82974955,1217.6,1217.4,7.50024496]
[1672650181787,7.82974955,1217.6,1217.4,11.50024496]
[1672650182172,7.82974955,1217.6,1217.4,7.50024496]
[1672650182389,7.82974955,1217.6,1217.4,11.50024496]
[1672650182845,7.82974955,1217.6,1217.4,7.50024496]
[1672650183862,7.82974955,1217.6,1217.4,11.50024496]
[1672650184499,7.82974955,1217.6,1217.4,11.49801153]
[1672650185209,7.82974955,1217.6,1217.4,3.34915039]
[1672650185472,7.82974955,1217.6,1217.4,3.25015039]
[1672650186101,7.82974955,1217.6,1217.4,7.25015039]
[1672650186333,7.82974955,1217.6,1217.4,7.34915039]
[1672650186474,7.82974955,1217.6,1217.4,3.34915039]